{"text_format":"1","workbook":"xlsx","n_sheets":5,"sheets":["ОТЧЕТ","Справочник","План производства","Рецептура","Расход сырья"],"not_rendered":{"charts":0,"images":0,"macros":1,"external_links":0,"defined_names":126,"comments":0,"pivot_tables":0},"unopened":[],"bounds":{"document_bytes":16777216,"sheet_cells":100000,"rows_first":2000,"rows_last":500,"rows_between":2000,"halvings":0,"cell_chars":16384,"cell_head_chars":4096},"cells_cut":0,"cells_raw":0,"read":"whole","date_system":"1900"}

{"sheet":"ОТЧЕТ","index":0,"n_rows":67,"n_cols":11,"rows_kept":67,"cut":false,"hidden":false,"merged":[]}
["№","Наименование","Условия хранения","Производитель","Дата производства","Срок годности","№ партии","Ед.   изм.","Вес канистры","Остаток на начало месяца","ОСГ"]
[{"$f":"ROW(B2)-1","v":1},"Ароматизатор пищевой \"Барбарис\" 5.88167.397 ",{"$f":"VLOOKUP(B2,Справочник!$A$2:$B$49,2,FALSE)","v":0},null,"2022-07-12","2023-12-01",6430940,"кг",10,{"$f":"21.625","v":21.625},{"$f":"F2-TODAY()","v":-203}]
[{"$f":"ROW(B3)-1","v":2},"Ароматизатор натуральный \"Груша\" 5.84954.719",{"$f":"VLOOKUP(B3,Справочник!$A$2:$B$49,2,FALSE)","v":0},null,"2022-07-12","2024-01-01",7033553,"кг",12,{"$f":"29.9","v":29.9},{"$f":"F3-TODAY()","v":-172}]
[3,"Ароматизатор натуральный \"Груша\" 5.84954.719",{"$f":"VLOOKUP(B4,Справочник!$A$2:$B$49,2,FALSE)","v":0},null,"2023-04-06","2024-09-27",7824168,"кг",11,132,98]
[4,"Ароматизатор пищевой \"Груша\" 5.11466.397",{"$f":"VLOOKUP(B5,Справочник!$A$2:$B$49,2,FALSE)","v":0},null,"2023-05-03","2024-10-24",7868317,"кг",10,46.85,125]
[5,"Ароматизатор пищевой \"Манго\" 5.82104.490",{"$f":"VLOOKUP(B6,Справочник!$A$2:$B$49,2,FALSE)","v":0},null,"2023-04-27","2024-10-18",7813953,"кг",22,51.85,119]
[6,"Вкусо-ароматическая основа \"Кола\" 200380",{"$f":"VLOOKUP(B7,Справочник!$A$2:$B$49,2,FALSE)","v":0},null,"2024-02-02","2024-06-28",7947051,"кг",24,264,7]
[7,"Вкусо-ароматическая основа \"Кола\" 200380",{"$f":"VLOOKUP(B8,Справочник!$A$2:$B$49,2,FALSE)","v":0},null,"2023-12-28","2024-03-30",7855767,"кг",24,0,-83]
[8,"Вкусо-ароматическая основа \"Кола\" 200380",{"$f":"VLOOKUP(B9,Справочник!$A$2:$B$49,2,FALSE)","v":0},null,"2024-01-02","2024-03-30",7880224,"кг",24,570.45000000000005,-83]
[9,"Компонент \"Кола\" 2.00608.490",{"$f":"VLOOKUP(B10,Справочник!$A$2:$B$49,2,FALSE)","v":0},null,"2023-05-08","2024-05-02",7836187,"кг",24,143.75,-50]
[10,"Ароматизатор пищевой \"Кола\" 519865.490",{"$f":"VLOOKUP(B11,Справочник!$A$2:$B$49,2,FALSE)","v":0},null,"2023-07-17","2024-03-13",8024888,"кг",20,123.45,-100]
[11,"Ароматизатор пищевой \"Вишня\" 5.11467.397",{"$f":"VLOOKUP(B12,Справочник!$A$2:$B$49,2,FALSE)","v":"При комнатной температуре"},null,"2023-01-10","2024-07-03",7610991,"кг",11,29.495000000000001,12]
[12,"Ароматизатор пищевой \"Вишня\" 5.11467.397",{"$f":"VLOOKUP(B13,Справочник!$A$2:$B$49,2,FALSE)","v":"При комнатной температуре"},null,"2024-04-27","2025-10-19",8516430,"кг",11,11,485]
[13,"Ароматизатор пищевой \"Дюшес\" 5.11470.719",{"$f":"VLOOKUP(B14,Справочник!$A$2:$B$49,2,FALSE)","v":0},null,"2023-04-09","2024-09-30",7801415,"кг",10,20,101]
[14,"Ароматизатор пищевой \"Дюшес\" 5.11470.719",{"$f":"VLOOKUP(B15,Справочник!$A$2:$B$49,2,FALSE)","v":0},null,"2023-02-14","2024-08-07",7731378,"кг",10,1.95,47]
[15,"Ароматизатор пищевой \"Черешня\" 5.81035.719",{"$f":"VLOOKUP(B16,Справочник!$A$2:$B$49,2,FALSE)","v":0},null,"2023-01-25","2024-07-18",7631535,"кг",11,35.35,27]
[16,"Ароматизатор пищевой \"Крем-сода\" 2.07482.397",{"$f":"VLOOKUP(B17,Справочник!$A$2:$B$49,2,FALSE)","v":0},null,"2022-12-02","2024-05-25",7543386,"кг",11,7.3250000000000002,-27]
[17,"Ароматизатор пищевой \"Крем-сода\" 2.07482.397",{"$f":"VLOOKUP(B18,Справочник!$A$2:$B$49,2,FALSE)","v":0},null,"2023-01-09","2024-07-12",7579141,"кг",12,33.9,21]
[18,"Ароматизатор пищевой \"Лимонад\" 5.84902.719",{"$f":"VLOOKUP(B19,Справочник!$A$2:$B$49,2,FALSE)","v":0},null,"2024-04-27","2025-10-19",7849542,"кг",10,19.45,485]
[19,"Ароматизатор пищевой \"Лимонад\" 5.84902.719",{"$f":"VLOOKUP(B20,Справочник!$A$2:$B$49,2,FALSE)","v":0},null,"2023-12-23","2024-05-29",7231083,"кг",10,8.3000000000000007,-23]
[20,"Ароматизатор пищевой \"Бабл-гам\"  675533  ",{"$f":"VLOOKUP(B21,Справочник!$A$2:$B$49,2,FALSE)","v":"сухое, темное место, при t около +20°С"},null,"2024-03-15","2025-09-06","167919/20300022","кг",25,0,442]
[21,"Ароматизатор пищевой \"Бабл-гам\"  675533  ",{"$f":"VLOOKUP(B22,Справочник!$A$2:$B$49,2,FALSE)","v":"сухое, темное место, при t около +20°С"},null,"2024-03-15","2025-09-06","167919/20300022","кг",25,26.65,442]
[22,"Ароматизатор \"Банан\" 156331",{"$f":"VLOOKUP(B23,Справочник!$A$2:$B$49,2,FALSE)","v":0},null,"2023-05-09","2024-05-08",10300065,"кг",10,4.82,-44]
[23,"Ароматизатор \"Банан\" 586329",{"$f":"VLOOKUP(B24,Справочник!$A$2:$B$49,2,FALSE)","v":0},null,"2023-06-12","2024-12-03",7906718,"кг",20,25.975000000000001,165]
[24,"Ароматизатор  пищевой \"Малина\" 221108 ",{"$f":"VLOOKUP(B25,Справочник!$A$2:$B$49,2,FALSE)","v":0},null,null,"2024-07-04","144226/10300226","кг",25,1.9,13]
[25,"Ароматизатор  пищевой \"Малина\" 221108 ",{"$f":"VLOOKUP(B26,Справочник!$A$2:$B$49,2,FALSE)","v":0},null,"2023-11-17","2025-05-10","160138/10300236","кг",25,50,323]
[26,"Ароматизатор  пищевой \"Клубника\" 222181",{"$f":"VLOOKUP(B27,Справочник!$A$2:$B$49,2,FALSE)","v":0},null,"19.01.2024-19/04/24","2024-06-25",33262405,"кг",25,23.8,4]
[27,"Ароматизатор  пищевой \"Клубника\" 222181",{"$f":"VLOOKUP(B28,Справочник!$A$2:$B$49,2,FALSE)","v":0},null,"2024-03-11","2025-03-06"," 168009/10300190",null,25,100,258]
[28,"Ароматизатор  пищевой \"Тархун\" 5.11463.719",{"$f":"VLOOKUP(B29,Справочник!$A$2:$B$49,2,FALSE)","v":0},null,"2024-03-11","2025-03-06",7896431,"кг",11,330,258]
[29,"Ароматизатор  пищевой \"Тархун\" 5.11463.719",{"$f":"VLOOKUP(B30,Справочник!$A$2:$B$49,2,FALSE)","v":0},null,"2023-04-15","2024-10-06",7835791,"кг",11,238.05,107]
[30,"Ароматизатор натуральный \"Тархун\" 581124",{"$f":"VLOOKUP(B31,Справочник!$A$2:$B$49,2,FALSE)","v":0},null,"2024-02-10","2024-05-29",7647869,"кг",10,89.5,-23]
[31,"Ароматизатор натуральный \"Карамель\" 583227",{"$f":"VLOOKUP(B32,Справочник!$A$2:$B$49,2,FALSE)","v":"При комнатной температуре"},null,"2023-01-11","2024-07-04",7574159,"кг",12,4.3,13]
[32,"Ароматизатор натуральный \"Карамель\" 583227",{"$f":"VLOOKUP(B33,Справочник!$A$2:$B$49,2,FALSE)","v":"При комнатной температуре"},null,"2024-03-26","2025-09-17",8476081,"кг",12,108,453]
[33,"Ароматизатор пищевой \"Фейхоа\" 236981",{"$f":"VLOOKUP(B34,Справочник!$A$2:$B$49,2,FALSE)","v":0},null,"2023-04-27","2024-04-21",33312754,"кг",25,58.25,-61]
[34,"Ароматизатор пищевой \"Маскиратор\" 5.83145.673",{"$f":"VLOOKUP(B35,Справочник!$A$2:$B$49,2,FALSE)","v":0},null,null,"2024-04-13",7429616,"кг",20,180.4,-69]
[35,"Ароматизатор пищевой \"Миндаль\" 2.01222.397",{"$f":"VLOOKUP(B36,Справочник!$A$2:$B$49,2,FALSE)","v":0},null,"2023-03-21","2024-09-11",7765223,"кг",12,24.85,82]
[36,"Ароматизатор пищевой \"Миндаль\" 2.01222.397",{"$f":"VLOOKUP(B37,Справочник!$A$2:$B$49,2,FALSE)","v":0},null,"2023-03-21","2024-10-24",7861533,"кг",12,10.8,125]
[37,"Колер карамельный",{"$f":"VLOOKUP(B38,Справочник!$A$2:$B$49,2,FALSE)","v":0},null,null,null,null,"кг",25,0,-45464]
[38,"Колер карамельный",{"$f":"VLOOKUP(B39,Справочник!$A$2:$B$49,2,FALSE)","v":0},null,null,"2025-09-05",794,"кг",25,134.6,441]
[39,"Подсластитель Мультисвит 200F 7.99204.640",{"$f":"VLOOKUP(B40,Справочник!$A$2:$B$49,2,FALSE)","v":"При комнатной температуре"},null,null,"2025-05-28",7911956,"кг",20,228.95,341]
[40,"Кислота лимонная",{"$f":"VLOOKUP(B41,Справочник!$A$2:$B$49,2,FALSE)","v":0},null,null,"2025-01-01","SEE BAG","кг",25,2080,194]
[41,"Бензоат натрия Purox S",{"$f":"VLOOKUP(B42,Справочник!$A$2:$B$49,2,FALSE)","v":0},null,null,"2024-11-18","20221119B","кг",25,436.55,150]
[42,"Калий сорбат 02875",{"$f":"VLOOKUP(B43,Справочник!$A$2:$B$49,2,FALSE)","v":"при t не более +25°С, влажность не более 75%"},null,null,"2026-02-24","PS20240225-01","кг",25,93.2,613]
[43,"Калий сорбат 02875",{"$f":"VLOOKUP(B44,Справочник!$A$2:$B$49,2,FALSE)","v":"при t не более +25°С, влажность не более 75%"},null,null,"2026-02-24","PS20240225-01","кг",25,0,613]
[44,"Краситель \"Понсо 4R\" Е124",{"$f":"VLOOKUP(B45,Справочник!$A$2:$B$49,2,FALSE)","v":0},null,null,null,null,"кг",1,0,-45464]
[45,"Краситель \"Понсо 4R\" Е124",{"$f":"VLOOKUP(B46,Справочник!$A$2:$B$49,2,FALSE)","v":0},null,"2023-08-24","2028-08-22","RF 07230465","кг",1,3.15,1523]
[46,"Краситель \"Красный очаровательный\" Е129  2.19378",{"$f":"VLOOKUP(B47,Справочник!$A$2:$B$49,2,FALSE)","v":0},null,"2022-10-13","2027-10-16",22100359,"кг",1,1.1499999999999999,1212]
[47,"КПД Symrise \"Замутнитель\" 370472",{"$f":"VLOOKUP(B48,Справочник!$A$2:$B$49,2,FALSE)","v":0},null,"2023-12-16","2024-06-23","14759/30300470","кг",25,17.25,2]
[48,"КПД Symrise \"Замутнитель\" 370472",{"$f":"VLOOKUP(B49,Справочник!$A$2:$B$49,2,FALSE)","v":0},null,"2024-01-12","2024-10-08","163429/30300520","кг",25,100,109]
[49,"Пищевая добавка, краситель  E122, Кармуазин",{"$f":"VLOOKUP(B50,Справочник!$A$2:$B$49,2,FALSE)","v":0},null,"2022-10-13","2027-10-12","P22100479 ","кг",1,2.25,1208]
[50,"Пищевая добавка, краситель  E133, Синий блестящий (порошок)",{"$f":"VLOOKUP(B51,Справочник!$A$2:$B$49,2,FALSE)","v":0},null,"2022-01-07","2027-01-06","RP22010005","кг",1,0.28999999999999998,929]
[51,"Пищевая добавка, краситель  E133, Синий блестящий (порошок)",{"$f":"VLOOKUP(B52,Справочник!$A$2:$B$49,2,FALSE)","v":0},null,"2023-05-18","2028-05-16","RF02230135","кг",1,0,1425]
[52,"Пищевая добавка, краситель  E133, Синий блестящий (порошок)",{"$f":"VLOOKUP(B53,Справочник!$A$2:$B$49,2,FALSE)","v":0},null,"2022-06-11","2027-06-10","RP22060136","кг",1,1,1084]
[53,"Пищевая добавка, краситель  Е102, Тартразин (порошок)",{"$f":"VLOOKUP(B54,Справочник!$A$2:$B$49,2,FALSE)","v":0},null,"2022-10-12","2027-10-11","RP22102205  ","кг",1,1.3,1207]
[54,"Сахар",{"$f":"VLOOKUP(B55,Справочник!$A$2:$B$49,2,FALSE)","v":0},null,null,null,null,"кг",null,5857,-45464]
[55,"Соль",{"$f":"VLOOKUP(B56,Справочник!$A$2:$B$49,2,FALSE)","v":0},null,null,null,null,"кг",null,5.85,-45464]
[56,"Моющее средство Катрил В-Н",{"$f":"VLOOKUP(B57,Справочник!$A$2:$B$49,2,FALSE)","v":0},null,null,null,null,"кг",28,117,-45464]
[57,"Дезинфицирующее средство Катрил-Дез",{"$f":"VLOOKUP(B58,Справочник!$A$2:$B$49,2,FALSE)","v":0},null,null,null,null,"кг",22,96,-45464]
[58,"Ф-картон",{"$f":"VLOOKUP(B59,Справочник!$A$2:$B$49,2,FALSE)","v":0},null,null,null,null,"кг",null,null,-45464]
[59,"Моющее средство Ром-Фос А",{"$f":"VLOOKUP(B60,Справочник!$A$2:$B$49,2,FALSE)","v":0},null,null,null,null,"кг",25,111,-45464]
[60,"Молэкс гель (от ржавчины)",{"$f":"VLOOKUP(B61,Справочник!$A$2:$B$49,2,FALSE)","v":0},null,null,null,null,"кг",1,1,-45464]
[61,"Молэкс марка В (кислотное для пеногенер.)",{"$f":"VLOOKUP(B62,Справочник!$A$2:$B$49,2,FALSE)","v":0},null,null,null,null,"кг",22,22,-45464]
[62,"Катрил С (щелочное пенное для пеногенер)",{"$f":"VLOOKUP(B63,Справочник!$A$2:$B$49,2,FALSE)","v":0},null,null,null,null,"кг",22,22,-45464]
[63,"Люир Хлор",{"$f":"VLOOKUP(B64,Справочник!$A$2:$B$49,2,FALSE)","v":0},null,null,null,null,"кг",1,1,-45464]
[64,"Фильтрующий элемент (ловушка)",{"$f":"VLOOKUP(B65,Справочник!$A$2:$B$49,2,FALSE)","v":0},null,null,null,null,"шт",null,42,-45464]
[65,"Соль таблетированная (умягчение)",{"$f":"VLOOKUP(B66,Справочник!$A$2:$B$49,2,FALSE)","v":0},null,null,null,null,"шт",null,900,-45464]
[66,null,{"$f":"VLOOKUP(B67,Справочник!$A$2:$B$49,2,FALSE)","v":{"$error":"#N/A"}},null,null,null,null,null,null,null,{"$f":"F67-TODAY()","v":-45464}]

{"sheet":"Справочник","index":1,"n_rows":47,"n_cols":2,"rows_kept":47,"cut":false,"hidden":false,"merged":[]}
["Наименование","Условия хранения"]
["Ароматизатор пищевой \"Барбарис\" 5.88167.397 "]
["Ароматизатор натуральный \"Груша\" 5.84954.719"]
["Ароматизатор пищевой \"Груша\" 5.11466.397"]
["Ароматизатор пищевой \"Манго\" 5.82104.490"]
["Вкусо-ароматическая основа \"Кола\" 200380"]
["Компонент \"Кола\" 2.00608.490"]
["Ароматизатор пищевой \"Кола\" 519865.490"]
["Ароматизатор пищевой \"Вишня\" 5.11467.397","При комнатной температуре"]
["Ароматизатор пищевой \"Дюшес\" 5.11470.719"]
["Ароматизатор пищевой \"Черешня\" 5.81035.719"]
["Ароматизатор пищевой \"Крем-сода\" 2.07482.397"]
["Ароматизатор пищевой \"Лимонад\" 5.84902.719"]
["Ароматизатор пищевой \"Бабл-гам\"  675533  ","сухое, темное место, при t около +20°С"]
["Ароматизатор \"Банан\" 156331"]
["Ароматизатор \"Банан\" 586329"]
["Ароматизатор  пищевой \"Малина\" 221108 "]
["Ароматизатор  пищевой \"Клубника\" 222181"]
["Ароматизатор  пищевой \"Тархун\" 5.11463.719"]
["Ароматизатор натуральный \"Тархун\" 581124"]
["Ароматизатор натуральный \"Карамель\" 583227","При комнатной температуре"]
["Ароматизатор пищевой \"Фейхоа\" 236981"]
["Ароматизатор пищевой \"Маскиратор\" 5.83145.673"]
["Ароматизатор пищевой \"Миндаль\" 2.01222.397"]
["Колер карамельный"]
["Подсластитель Мультисвит 200F 7.99204.640","При комнатной температуре"]
["Кислота лимонная"]
["Бензоат натрия Purox S"]
["Калий сорбат 02875","при t не более +25°С, влажность не более 75%"]
["Краситель \"Понсо 4R\" Е124"]
["Краситель \"Красный очаровательный\" Е129  2.19378"]
["КПД Symrise \"Замутнитель\" 370472"]
["Пищевая добавка, краситель  E122, Кармуазин"]
["Пищевая добавка, краситель  E133, Синий блестящий (порошок)"]
["Пищевая добавка, краситель  Е102, Тартразин (порошок)"]
["Сахар"]
["Соль"]
["Моющее средство Катрил В-Н"]
["Дезинфицирующее средство Катрил-Дез"]
["Ф-картон"]
["Моющее средство Ром-Фос А"]
["Молэкс гель (от ржавчины)"]
["Молэкс марка В (кислотное для пеногенер.)"]
["Катрил С (щелочное пенное для пеногенер)"]
["Люир Хлор"]
["Фильтрующий элемент (ловушка)"]
["Соль таблетированная (умягчение)"]

{"sheet":"План производства","index":2,"n_rows":14,"n_cols":31,"rows_kept":14,"cut":false,"hidden":false,"merged":[]}
["Наименование ","2024-06-01","2024-06-02","2024-06-03","2024-06-04","2024-06-05","2024-06-06","2024-06-07","2024-06-08","2024-06-09","2024-06-10","2024-06-11","2024-06-12","2024-06-13","2024-06-14","2024-06-15","2024-06-16","2024-06-17","2024-06-18","2024-06-19","2024-06-20","2024-06-21","2024-06-22","2024-06-23","2024-06-24","2024-06-25","2024-06-26","2024-06-27","2024-06-28","2024-06-29","2024-06-30"]
["НАПИТОК БЕЗАЛКОГОЛЬНЫЙ НА АРОМАТИЗАТОРАХ СИЛЬНОГАЗИРОВАННЫЙ «ЛИМОНАД «ЭКСТРА»",null,null,null,null,null,null,null,null,null,null,null,null,null,null,null,null,null,null,null,26000]
["НАПИТОК БЕЗАЛКОГОЛЬНЫЙ НА АРОМАТИЗАТОРАХ СИЛЬНОГАЗИРОВАННЫЙ «СО ВКУСОМ КРЕМ-СОДА».",null,null,null,null,null,null,null,null,null,null,null,null,null,null,null,null,null,null,null,null,26000]
["НАПИТОК БЕЗАЛКОГОЛЬНЫЙ НА АРОМАТИЗАТОРАХ СИЛЬНОГАЗИРОВАННЫЙ «СО ВКУСОМ ГРУША»",null,null,null,null,null,null,null,null,null,null,null,null,null,null,null,null,null,null,null,null,null,null,null,26000,13000]
["НАПИТОК БЕЗАЛКОГОЛЬНЫЙ НА АРОМАТИЗАТОРАХ СИЛЬНОГАЗИРОВАННЫЙ «СО ВКУСОМ ФЕЙХОА»",null,null,null,null,null,null,null,null,null,null,null,null,null,null,null,null,null,null,null,null,null,null,null,null,null,13000]
["НАПИТОК БЕЗАЛКОГОЛЬНЫЙ НА АРОМАТИЗАТОРАХ СИЛЬНОГАЗИРОВАННЫЙ «СО ВКУСОМ ТАРХУН»",null,null,null,null,null,null,null,null,null,null,null,null,null,null,null,null,null,null,null,null,null,null,null,null,13000,13000]
["НАПИТОК БЕЗАЛКОГОЛЬНЫЙ НА АРОМАТИЗАТОРАХ СИЛЬНОГАЗИРОВАННЫЙ «СО ВКУСОМ БАРБАРИС»",null,null,null,null,null,null,null,null,null,null,null,null,null,null,null,null,null,null,null,null,null,null,null,null,null,null,26000,13000]
["НАПИТОК БЕЗАЛКОГОЛЬНЫЙ НА АРОМАТИЗАТОРАХ СИЛЬНОГАЗИРОВАННЫЙ «СО ВКУСОМ КОЛА»"]
["НАПИТОК БЕЗАЛКОГОЛЬНЫЙ НА АРОМАТИЗАТОРАХ СИЛЬНОГАЗИРОВАННЫЙ «СО ВКУСОМ КОЛА-ВИШНЯ»"]
["НАПИТОК БЕЗАЛКОГОЛЬНЫЙ НА АРОМАТИЗАТОРАХ СИЛЬНОГАЗИРОВАННЫЙ «СО ВКУСОМ КОЛА-МАРШМЕЛЛОУ»",null,null,null,null,null,null,null,null,null,null,null,null,null,null,null,null,null,null,13000]
["НАПИТОК БЕЗАЛКОГОЛЬНЫЙ НА АРОМАТИЗАТОРАХ СИЛЬНОГАЗИРОВАННЫЙ «СО ВКУСОМ КОЛА-БЛЮ»",null,null,null,null,null,null,null,null,null,null,null,null,null,null,null,null,null,26000]
["НАПИТОК БЕЗАЛКОГОЛЬНЫЙ НА АРОМАТИЗАТОРАХ СИЛЬНОГАЗИРОВАННЫЙ «СО ВКУСОМ КОЛА-МАНГО»"]
["НАПИТОК БЕЗАЛКОГОЛЬНЫЙ НА АРОМАТИЗАТОРАХ СИЛЬНОГАЗИРОВАННЫЙ «СО ВКУСОМ КОЛА-БАНАН»",null,null,null,null,null,null,null,null,null,null,null,null,null,null,null,null,null,null,13000]
["НАПИТОК БЕЗАЛКОГОЛЬНЫЙ НА АРОМАТИЗАТОРАХ СИЛЬНОГАЗИРОВАННЫЙ «СО ВКУСОМ КОЛА-КАРАМЕЛЬ»"]

{"sheet":"Рецептура","index":3,"n_rows":14,"n_cols":38,"rows_kept":14,"cut":false,"hidden":false,"merged":[]}
["№ п/п","Наименование сырья","Ароматизатор пищевой \"Барбарис\" 5.88167.397 ","Ароматизатор натуральный \"Груша\" 5.84954.719","Ароматизатор пищевой \"Груша\" 5.11466.397","Ароматизатор пищевой \"Манго\" 5.82104.490","Вкусо-ароматическая основа \"Кола\" 200380","Компонент \"Кола\" 2.00608.490","Ароматизатор пищевой \"Кола\" 519865.490","Ароматизатор пищевой \"Вишня\" 5.11467.397","Ароматизатор пищевой \"Дюшес\" 5.11470.719","Ароматизатор пищевой \"Черешня\" 5.81035.719","Ароматизатор пищевой \"Крем-сода\" 2.07482.397","Ароматизатор пищевой \"Лимонад\" 5.84902.719","Ароматизатор пищевой \"Бабл-гам\"  675533  ","Ароматизатор \"Банан\" 156331","Ароматизатор \"Банан\" 586329","Ароматизатор  пищевой \"Малина\" 221108 ","Ароматизатор  пищевой \"Клубника\" 222181","Ароматизатор  пищевой \"Тархун\" 5.11463.719","Ароматизатор натуральный \"Тархун\" 581124","Ароматизатор натуральный \"Карамель\" 583227","Ароматизатор пищевой \"Фейхоа\" 236981","Ароматизатор пищевой \"Маскиратор\" 5.83145.673","Ароматизатор пищевой \"Миндаль\" 2.01222.397","Колер карамельный","Подсластитель Мультисвит 200F 7.99204.640","Кислота лимонная","Бензоат натрия Purox S","Калий сорбат 02875","Краситель \"Понсо 4R\" Е124","Краситель \"Красный очаровательный\" Е129  2.19378","КПД Symrise \"Замутнитель\" 370472","Пищевая добавка, краситель  E122, Кармуазин","Пищевая добавка, краситель  E133, Синий блестящий (порошок)","Пищевая добавка, краситель  Е102, Тартразин (порошок)","Сахар","Соль"]
[1,"НАПИТОК БЕЗАЛКОГОЛЬНЫЙ НА АРОМАТИЗАТОРАХ СИЛЬНОГАЗИРОВАННЫЙ «ЛИМОНАД «ЭКСТРА»",null,null,null,null,null,null,null,null,null,null,null,0.22539999999999999,null,null,null,null,null,null,null,null,null,0.3,null,0.3,0.81,2.7,0.22500000000000001,0.375]
[2,"НАПИТОК БЕЗАЛКОГОЛЬНЫЙ НА АРОМАТИЗАТОРАХ СИЛЬНОГАЗИРОВАННЫЙ «СО ВКУСОМ КРЕМ-СОДА».",null,null,null,null,null,null,null,null,null,null,0.22500000000000001,null,null,null,null,null,null,null,null,null,null,0.3,null,0.22500000000000001,0.72,1.05,0.22500000000000001,0.375]
[3,"НАПИТОК БЕЗАЛКОГОЛЬНЫЙ НА АРОМАТИЗАТОРАХ СИЛЬНОГАЗИРОВАННЫЙ «СО ВКУСОМ ГРУША»",null,0.6,0.45,null,null,null,null,null,0.15,null,null,null,null,null,null,null,null,null,null,null,null,0.3,null,0.33,0.69799999999999995,1.8,0.22600000000000001,0.375]
[4,"НАПИТОК БЕЗАЛКОГОЛЬНЫЙ НА АРОМАТИЗАТОРАХ СИЛЬНОГАЗИРОВАННЫЙ «СО ВКУСОМ ФЕЙХОА»",null,null,null,null,null,null,null,null,null,null,null,null,null,null,null,null,null,null,null,null,0.82550000000000001,null,null,0.24,0.78,2.1,0.22539999999999999,0.3755,null,null,null,null,1E-3,8.0000000000000002E-3]
[5,"НАПИТОК БЕЗАЛКОГОЛЬНЫЙ НА АРОМАТИЗАТОРАХ СИЛЬНОГАЗИРОВАННЫЙ «СО ВКУСОМ ТАРХУН»",null,null,null,null,null,null,null,null,null,null,null,null,null,null,null,null,null,2.1,0.3,null,null,null,null,null,0.73499999999999999,1.95,0.22500000000000001,0.376]
[6,"НАПИТОК БЕЗАЛКОГОЛЬНЫЙ НА АРОМАТИЗАТОРАХ СИЛЬНОГАЗИРОВАННЫЙ «СО ВКУСОМ БАРБАРИС»",0.15,null,null,null,null,null,null,null,null,null,null,null,null,null,null,null,null,null,null,null,null,0.3,null,null,0.79500000000000004,2.7,0.22500000000000001,0.376,7.4999999999999997E-2]
[7,"НАПИТОК БЕЗАЛКОГОЛЬНЫЙ НА АРОМАТИЗАТОРАХ СИЛЬНОГАЗИРОВАННЫЙ «СО ВКУСОМ КОЛА»",null,null,null,null,4.8,null,null,null,null,null,null,null,null,null,null,null,null,null,null,null,null,null,null,null,0.52100000000000002,null,0.22600000000000001,0.376,null,null,null,null,null,null,45.6]
[8,"НАПИТОК БЕЗАЛКОГОЛЬНЫЙ НА АРОМАТИЗАТОРАХ СИЛЬНОГАЗИРОВАННЫЙ «СО ВКУСОМ КОЛА-ВИШНЯ»",null,null,null,null,4.8,null,null,0.34100000000000003,null,0.3,null,null,null,null,null,null,null,null,null,null,null,null,0.09,null,0.52100000000000002,null,0.22500000000000001,0.376,null,0.02,null,null,null,null,45.6]
[9,"НАПИТОК БЕЗАЛКОГОЛЬНЫЙ НА АРОМАТИЗАТОРАХ СИЛЬНОГАЗИРОВАННЫЙ «СО ВКУСОМ КОЛА-МАРШМЕЛЛОУ»",null,null,null,null,null,null,0.375,null,null,null,null,null,0.9,3.7999999999999999E-2,null,null,0.375,null,null,null,null,null,null,null,0.52100000000000002,2.7,0.22500000000000001,0.375,null,null,1.2,5.0000000000000001E-3,null,null,45.6]
[10,"НАПИТОК БЕЗАЛКОГОЛЬНЫЙ НА АРОМАТИЗАТОРАХ СИЛЬНОГАЗИРОВАННЫЙ «СО ВКУСОМ КОЛА-БЛЮ»",null,null,null,null,null,null,0.3,null,null,null,null,null,null,null,null,0.6,null,null,null,null,null,null,null,null,0.52100000000000002,2.25,0.22600000000000001,0.376,null,null,null,null,5.0000000000000001E-3,null,45]
[11,"НАПИТОК БЕЗАЛКОГОЛЬНЫЙ НА АРОМАТИЗАТОРАХ СИЛЬНОГАЗИРОВАННЫЙ «СО ВКУСОМ КОЛА-МАНГО»",null,null,null,0.45,null,1.2,0.6,null,null,null,null,null,null,null,null,null,null,null,null,null,null,null,null,2.4,0.52100000000000002,0.45,null,0.376,null,null,null,null,null,null,45.6]
[12,"НАПИТОК БЕЗАЛКОГОЛЬНЫЙ НА АРОМАТИЗАТОРАХ СИЛЬНОГАЗИРОВАННЫЙ «СО ВКУСОМ КОЛА-БАНАН»",null,null,null,null,4.8,null,null,null,null,null,null,null,null,null,0.22500000000000001,null,null,null,null,null,null,null,null,null,0.48799999999999999,null,0.224,0.376,null,null,null,null,null,null,67.5]
[13,"НАПИТОК БЕЗАЛКОГОЛЬНЫЙ НА АРОМАТИЗАТОРАХ СИЛЬНОГАЗИРОВАННЫЙ «СО ВКУСОМ КОЛА-КАРАМЕЛЬ»",null,null,null,null,4.8,null,null,null,null,null,null,null,null,null,null,null,null,null,null,0.6,null,null,null,null,0.48,null,0.22500000000000001,0.375,null,null,null,null,null,null,67.5,0.45]

{"sheet":"Расход сырья","index":4,"n_rows":36,"n_cols":31,"rows_kept":36,"cut":false,"hidden":false,"merged":[]}
["Наименование ","2024-06-01","2024-06-02","2024-06-03","2024-06-04","2024-06-05","2024-06-06","2024-06-07","2024-06-08","2024-06-09","2024-06-10","2024-06-11","2024-06-12","2024-06-13","2024-06-14","2024-06-15","2024-06-16","2024-06-17","2024-06-18","2024-06-19","2024-06-20","2024-06-21","2024-06-22","2024-06-23","2024-06-24","2024-06-25","2024-06-26","2024-06-27","2024-06-28","2024-06-29","2024-06-30"]
["Ароматизатор пищевой \"Барбарис\" 5.88167.397 "]
["Ароматизатор натуральный \"Груша\" 5.84954.719"]
["Ароматизатор пищевой \"Груша\" 5.11466.397"]
["Ароматизатор пищевой \"Манго\" 5.82104.490"]
["Вкусо-ароматическая основа \"Кола\" 200380"]
["Компонент \"Кола\" 2.00608.490"]
["Ароматизатор пищевой \"Кола\" 519865.490"]
["Ароматизатор пищевой \"Вишня\" 5.11467.397"]
["Ароматизатор пищевой \"Дюшес\" 5.11470.719"]
["Ароматизатор пищевой \"Черешня\" 5.81035.719"]
["Ароматизатор пищевой \"Крем-сода\" 2.07482.397"]
["Ароматизатор пищевой \"Лимонад\" 5.84902.719"]
["Ароматизатор пищевой \"Бабл-гам\"  675533  "]
["Ароматизатор \"Банан\" 156331"]
["Ароматизатор  пищевой \"Малина\" 221108 "]
["Ароматизатор  пищевой \"Клубника\" 222181"]
["Ароматизатор  пищевой \"Тархун\" 5.11463.719"]
["Ароматизатор натуральный \"Тархун\" 581124"]
["Ароматизатор натуральный \"Карамель\" 583227"]
["Ароматизатор пищевой \"Фейхоа\" 236981"]
["Ароматизатор пищевой \"Маскиратор\" 5.83145.673"]
["Ароматизатор пищевой \"Миндаль\" 2.01222.397"]
["Колер карамельный"]
["Подсластитель Мультисвит 200F 7.99204.640"]
["Кислота лимонная"]
["Бензоат натрия Purox S"]
["Калий сорбат 02875"]
["Краситель \"Понсо 4R\" Е124"]
["Краситель \"Красный очаровательный\" Е129  2.19378"]
["КПД Symrise \"Замутнитель\" 370472"]
["Пищевая добавка, краситель  E122, Кармуазин"]
["Пищевая добавка, краситель  E133, Синий блестящий (порошок)"]
["Пищевая добавка, краситель  Е102, Тартразин (порошок)"]
["Сахар"]
["Соль"]